bitfinex/quotes_ETHUSD_20250114
["timestamp","ask_amount","ask_price","bid_price","bid_amount"]
[1736884322965,8.41753727,3227.6,3227.5,0.1667551]
[1736884324712,5.31926727,3227.6,3227.5,0.1667551]
[1736884325004,7.32982526,3227.6,3227.5,0.1667551]
[1736884325364,4.23155526,3227.6,3227.5,0.1667551]
[1736884326090,3.68155526,3227.6,3227.5,0.1667551]
[1736884326470,4.41355526,3227.6,3227.5,0.1667551]
[1736884326885,1.41355526,3227.6,3227.5,0.1667551]
[1736884327283,0.10205526,3227.6,3227.5,0.1667551]
[1736884327531,0.04540324,3227.6,3227.5,0.1667551]
[1736884327716,0.55,3227.6,3227.5,0.1667551]
[1736884328025,0.59306567,3227.6,3227.5,0.1667551]
[1736884328318,0.55,3227.6,3227.5,0.1667551]
[1736884328682,0.59306567,3227.6,3227.5,0.1667551]
[1736884328879,0.04306567,3227.6,3227.5,0.39328361]
[1736884329104,0.182,3227.9,3227.5,0.0667551]
[1736884329321,0.04320956,3227.6,3227.5,0.0667551]
[1736884329524,0.55,3227.8,3227.5,0.0667551]
[1736884329824,0.59331945,3227.6,3227.5,0.0667551]
[1736884329995,0.55,3227.6,3227.5,0.0667551]
[1736884330322,0.04326027,3227.6,3227.5,0.0667551]
[1736884330495,0.5795,3228.2,3227.5,3.48164261]
[1736884330699,0.04326027,3227.6,3227.5,3.1651251]
[1736884330901,0.55,3227.9,3227.5,3.1651251]
[1736884331112,0.5795,3228.6,3227.8,3.09806]
[1736884331285,0.04322733,3227.8,3227.7,3.91858]
[1736884331624,0.55,3228.3,3227.8,3.09801]
[1736884331927,0.55,3228.1,3227.8,3.09801]
[1736884332090,0.55,3228.1,3227.8,3.489851]
[1736884332285,0.55,3228.3,3227.8,3.489851]
[1736884332504,0.0435726,3228.0,3227.8,3.489851]
[1736884332703,0.55,3228.3,3227.8,3.489851]
[1736884333023,0.04354726,3227.9,3227.8,3.489851]
[1736884333187,0.55,3228.3,3227.9,3.09794]
[1736884333725,0.04364016,3228.2,3227.9,3.09794]
[1736884333926,0.5795,3229.0,3228.1,3.09779]
[1736884334110,0.7615,3229.0,3227.9,3.5289881]
[1736884334322,0.7615,3229.0,3228.1,3.09771]
[1736884334903,0.55,3228.9,3228.1,3.09771]
[1736884335840,0.55,3228.9,3228.2,3.09768]
[1736884336933,0.735,3228.9,3228.4,0.8127]
[1736884337240,0.185,3229.5,3228.9,3.09694]
[1736884337754,0.59242209,3229.4,3228.7,3.09719]
[1736884341543,0.59242209,3229.4,3228.5,3.09736]
[1736884341697,0.59242209,3229.4,3228.4,0.8127]
[1736884341897,0.55,3229.2,3228.4,0.8127]
[1736884342134,0.7645,3229.3,3228.4,0.8127]
[1736884342135,0.04248886,3229.3,3228.4,4.3599948]
[1736884342339,0.185,3229.5,3228.8,3.09704]
[1736884342340,0.55,3229.4,3228.8,3.09704]
[1736884342651,0.04246354,3229.2,3228.8,3.09704]
[1736884342940,0.04243823,3229.1,3228.8,3.09704]
[1736884343097,0.55,3229.4,3228.8,3.09704]
[1736884343299,0.04248886,3229.3,3228.8,3.09704]
[1736884344332,0.04248886,3229.3,3228.5,0.74575948]
[1736884344639,0.04248886,3229.3,3228.9,3.09699]
[1736884344834,0.04248886,3229.3,3229.2,3.09674]
[1736884345133,0.55,3229.6,3229.2,3.09674]
[1736884345600,0.7645,3229.9,3229.2,3.09674]
[1736884345800,0.04484493,3229.5,3229.3,3.09662]
[1736884346021,0.55,3229.8,3229.3,3.09662]
[1736884346226,0.04481962,3229.4,3229.1,3.9095]
[1736884346539,0.04479431,3229.3,3229.1,3.9095]
[1736884346747,0.55,3229.8,3229.1,3.9095]
[1736884346947,0.044769,3229.2,3228.9,3.09695]
[1736884347124,0.55,3229.8,3228.9,3.09695]
[1736884347321,0.04474368,3229.1,3228.9,3.09695]
[1736884347510,0.55,3229.6,3228.9,3.09695]
[1736884347710,0.04488328,3229.0,3228.9,3.09695]
[1736884348053,0.55,3229.4,3228.5,0.8127]
[1736884348215,0.55,3229.4,3228.8,3.0971]
[1736884348552,0.04499301,3229.3,3228.8,3.0971]
[1736884348720,0.55,3229.4,3228.8,3.0971]
[1736884349045,0.55,3229.1,3228.6,3.09727]
[1736884349221,0.55,3229.1,3228.5,3.09737]
[1736884349422,0.55,3229.3,3228.5,3.09737]
[1736884349612,0.55,3228.9,3228.5,3.09737]
[1736884349809,6.28135,3229.7,3228.7,3.09716]
[1736884350024,0.04461906,3228.8,3228.7,3.09716]
[1736884350247,0.735,3229.4,3228.8,3.09708]
[1736884350639,0.04474563,3229.3,3228.8,3.09708]
[1736884351412,0.04474563,3229.3,3228.4,3.09745]
[1736884351612,0.04474563,3229.3,3229.2,3.09674]
[1736884352059,0.5795,3229.8,3229.4,3.09652]
[1736884352258,0.185,3229.9,3229.4,3.09652]
[1736884352409,0.04317477,3229.7,3229.2,3.09669]
[1736884352613,0.04319248,3229.8,3229.1,3.90952]
[1736884353006,0.185,3229.9,3229.1,0.8127]
[1736884353007,0.04320856,3229.7,3229.1,0.8127]
[1736884353173,0.04320856,3229.7,3229.4,3.09653]
[1736884353320,0.55,3229.8,3229.4,3.09653]
[1736884353521,0.04318325,3229.6,3229.2,3.09667]
[1736884353819,0.55,3229.8,3229.2,3.09667]
[1736884354020,0.04315794,3229.5,3229.2,3.09667]
[1736884354219,0.55,3229.8,3229.2,3.09667]
[1736884354456,0.04313263,3229.4,3229.3,3.09664]
[1736884354755,0.55,3229.8,3229.3,3.09664]
[1736884354952,0.04313263,3229.4,3229.3,3.09664]
[1736884355158,0.55,3229.8,3229.3,3.09664]
[1736884355359,0.04309884,3229.4,3229.3,3.09664]
[1736884355656,0.55,3229.8,3229.3,3.09664]
[1736884356021,0.04317477,3229.7,3229.3,3.09664]
[1736884356755,0.04317477,3229.7,3228.8,3.0971]
[1736884356917,0.55,3229.5,3229.1,3.09681]
[1736884357319,0.04313263,3229.4,3229.1,3.09681]
[1736884360360,0.04313263,3229.4,3228.8,0.8127]
[1736884360572,0.55,3229.5,3229.2,3.09666]
[1736884360790,0.04310732,3229.3,3229.2,3.09666]
[1736884360935,1.1295,3229.8,3229.2,3.09666]
[1736884361141,0.04310732,3229.3,3229.2,3.09666]
[1736884361337,0.55,3229.8,3229.3,0.8127]
[1736884361542,0.55,3229.8,3229.4,3.09646]
[1736884363376,0.55,3229.8,3229.3,0.8127]
[1736884363945,0.55,3229.8,3229.4,3.09653]
[1736884365067,0.5795,3230.1,3229.5,3.09645]
[1736884365242,0.5795,3230.4,3229.4,0.390923]
[1736884365444,0.5795,3230.4,3229.9,3.90868]
[1736884365656,0.5795,3230.4,3230.0,3.09597]
[1736884366073,0.5795,3230.4,3229.9,0.8127]
[1736884366281,0.5795,3230.4,3229.8,3.09615]
[1736884367186,0.55,3230.1,3229.3,3.09657]
[1736884367498,0.55,3229.9,3229.4,3.09654]
[1736884367671,0.55,3229.9,3229.5,3.09639]
[1736884367867,0.04248742,3229.8,3229.5,3.09639]
[1736884368278,0.5795,3230.0,3229.5,3.09639]
[1736884368610,3.185,3230.5,3229.3,3.54130734]
[1736884368909,0.04231842,3229.9,3229.4,1.11853073]
[1736884369110,0.5795,3230.4,3229.6,3.09626]
[1736884369111,0.55,3230.3,3229.6,3.09626]
[1736884369413,0.04241124,3230.2,3229.6,3.09626]
[1736884369589,0.04241124,3230.2,3229.6,3.09628]
[1736884371684,0.04241124,3230.2,3229.7,3.09625]
[1736884376269,0.04241124,3230.2,3229.5,3.09642]
[1736884376466,0.48766236,3230.2,3229.5,3.09642]
[1736884376770,0.48766236,3230.2,3229.4,0.7644]
[1736884376771,0.55,3230.1,3229.4,0.7644]
[1736884376921,0.55,3229.9,3229.1,6.32511777]
[1736884377430,0.55,3229.7,3229.1,6.32511777]
[1736884377631,0.55,3229.7,3229.1,3.09674]
[1736884377852,0.55,3229.9,3229.1,3.09674]
[1736884378161,0.55,3229.7,3229.2,3.09673]
[1736884378519,0.04246804,3229.6,3229.2,3.09673]
[1736884380418,0.04246804,3229.6,3229.0,0.7644]
[1736884380628,0.5795,3230.0,3229.3,2.92098127]
[1736884380828,0.185,3230.6,3229.8,3.09609]
[1736884381141,3.04237003,3230.5,3229.6,3.09631]
[1736884381339,0.5795,3230.4,3229.6,3.09631]
[1736884381543,0.55,3230.3,3229.6,3.09631]
[1736884381763,0.592349,3230.3,3229.6,3.09631]
[1736884382132,1.0190849,3230.3,3229.4,3.87839]
[1736884382458,3.688039,3230.3,3229.4,3.87839]
[1736884382761,0.592349,3230.3,3229.6,3.09631]
[1736884382962,3.592349,3230.3,3229.4,0.7819]
[1736884383176,0.5795,3230.2,3229.3,3.22837777]
[1736884383381,0.62236106,3230.2,3229.3,3.22837777]
[1736884383544,0.62236106,3230.2,3229.6,3.09628]
[1736884384240,0.55,3230.1,3229.4,3.0965]
[1736884384479,0.55,3230.3,3229.1,3.22837777]
[1736884384666,0.55,3229.9,3229.1,6.32518777]
[1736884384983,0.55,3229.7,3229.1,6.32518777]
[1736884385276,0.55,3229.7,3229.2,3.09672]
[1736884385465,0.55,3229.9,3229.2,3.09672]
[1736884385845,0.55,3229.7,3229.2,3.09672]
[1736884386148,0.04262168,3229.6,3229.2,3.09672]
[1736884388084,0.55,3229.8,3229.2,3.09672]
[1736884388462,0.04264698,3229.7,3229.2,3.09672]
[1736884388851,0.55,3229.8,3229.2,3.09672]
[1736884389294,0.04264698,3229.7,3229.2,3.09672]
[1736884389592,0.55,3229.8,3229.2,3.09672]
[1736884389746,0.04262168,3229.6,3229.2,3.09672]
[1736884389946,0.55,3229.8,3229.2,3.09672]
[1736884390147,0.04259638,3229.5,3229.2,3.09672]
[1736884390395,0.55,3229.8,3229.2,3.09672]
[1736884390554,0.04257107,3229.4,3229.0,6.32524777]
[1736884390791,0.5795,3229.5,3229.0,3.22837777]
[1736884390999,0.55,3229.2,3228.9,3.22837777]
[1736884391297,0.55,3229.4,3228.7,3.22837777]
[1736884391486,0.55,3229.3,3228.7,3.22837777]
[1736884391823,0.55,3228.9,3228.5,3.22837777]
[1736884391986,0.55,3228.9,3228.4,6.32585777]
[1736884392184,0.04204283,3228.8,3228.4,6.32585777]
[1736884392416,0.55,3228.9,3228.4,3.09748]
[1736884392618,0.04201751,3228.7,3228.4,3.09748]
[1736884392819,0.55,3228.9,3228.4,3.09748]
[1736884393498,0.04193762,3228.8,3228.4,3.09748]
[1736884393928,0.55,3228.9,3228.4,3.09748]
[1736884394326,0.04170571,3228.8,3228.4,3.09748]
[1736884394541,0.55,3228.9,3228.4,3.09748]
[1736884394704,0.55,3228.9,3228.2,3.22837777]
[1736884394903,0.5795,3228.6,3228.1,3.22837777]
[1736884395507,0.55,3228.5,3227.7,3.22837777]
[1736884395749,0.96295,3228.5,3227.7,3.22837777]
[1736884395953,0.55,3228.3,3227.7,3.0981]
[1736884397123,0.55,3228.3,3227.8,3.09806]
[1736884397329,0.04138593,3228.2,3227.8,3.09806]
[1736884397529,0.55,3228.3,3227.8,3.09806]
[1736884397844,0.04138593,3228.2,3227.8,3.09806]
[1736884398051,0.55,3228.3,3227.8,3.09806]
[1736884398356,0.04138593,3228.2,3227.8,3.09806]
[1736884398653,0.55,3228.3,3227.8,3.09806]
[1736884398962,0.04138593,3228.2,3227.6,3.09824]
[1736884399168,0.55,3228.1,3227.5,0.0667551]
[1736884399331,0.55,3228.1,3227.7,3.09817]
[1736884399536,0.04133527,3228.0,3227.7,3.09817]
[1736884400949,0.04133527,3228.0,3227.5,0.50861065]
[1736884401155,0.55,3228.3,3227.7,3.09813]
[1736884401340,0.04084074,3227.9,3227.7,3.09813]
[1736884401651,0.55,3228.3,3227.7,0.36067407]
[1736884401859,0.5795,3228.4,3228.1,3.09777]
[1736884402070,0.04079844,3228.2,3228.1,3.09777]
[1736884402359,0.5795,3228.4,3228.1,3.09777]
[1736884402659,0.04080689,3228.2,3228.1,3.09777]
[1736884402859,0.5795,3228.4,3228.1,3.09777]
[1736884403063,0.5795,3228.4,3227.9,3.92158]
[1736884403265,0.04048679,3228.3,3227.9,3.09798]
[1736884403619,0.59048679,3228.3,3227.9,3.09798]
[1736884403820,0.55,3228.3,3227.7,3.09815]
[1736884404123,0.04046146,3228.2,3227.8,3.09807]
[1736884404466,0.55,3228.3,3227.8,3.09804]
[1736884404653,0.04043613,3228.1,3227.8,3.09804]
[1736884404816,0.04046146,3228.2,3227.8,3.09804]
[1736884405161,0.55,3228.3,3227.9,3.09798]
[1736884405336,0.04043613,3228.1,3227.9,3.09798]
[1736884405704,0.5795,3228.4,3227.9,0.309798]
[1736884405817,0.182,3228.5,3228.1,3.09777]
[1736884406168,0.04051187,3228.3,3228.1,3.09777]
[1736884406317,0.5795,3228.9,3228.6,3.0973]
[1736884406517,0.182,3229.3,3228.7,3.09717]
[1736884406716,0.182,3229.3,3228.8,3.09705]
[1736884406717,0.5795,3229.2,3228.8,3.09705]
[1736884406961,0.5795,3229.2,3228.8,3.406755]
[1736884407167,0.5795,3229.2,3228.9,3.09701]
[1736884407334,0.182,3229.3,3228.8,4.05428627]
[1736884407533,0.182,3229.3,3229.0,3.0969]
[1736884410862,0.182,3229.3,3228.4,0.8046]
[1736884411393,0.182,3229.3,3228.7,3.09718]
[1736884411765,0.182,3229.3,3228.5,0.45336221]
[1736884411979,0.182,3229.3,3228.8,3.09704]
[1736884412797,0.039904,3229.2,3228.8,3.09704]
[1736884412957,0.182,3229.3,3228.8,3.09704]
[1736884413158,0.03987868,3229.1,3228.8,3.09704]
[1736884413376,0.182,3229.3,3228.8,3.09704]
[1736884413617,0.03985337,3229.0,3228.8,3.09704]
[1736884413927,0.182,3229.3,3228.8,3.09704]
[1736884414410,0.03995468,3229.2,3228.8,3.09704]
[1736884414709,0.182,3229.3,3228.8,3.09704]
[1736884414867,0.03992937,3229.1,3228.8,3.09704]
[1736884415069,0.03995468,3229.2,3228.8,3.09703]
[1736884415308,0.03990405,3229.0,3228.8,3.09706]
[1736884415513,0.182,3229.3,3228.8,3.09706]
[1736884415685,0.182,3229.3,3228.9,3.09699]
[1736884415893,0.03987738,3229.2,3228.9,3.09699]
[1736884416309,0.182,3229.3,3228.9,3.09699]
[1736884416496,0.03984691,3229.1,3228.9,3.09699]
[1736884416686,0.182,3229.3,3228.9,3.09699]
[1736884417117,0.03987222,3229.2,3228.5,6.01839127]
[1736884417424,0.182,3229.3,3229.0,3.09691]
[1736884417571,0.04037789,3229.1,3229.0,3.09691]
[1736884417775,0.182,3229.3,3229.0,3.09691]
[1736884417997,0.04037789,3229.1,3229.0,3.09691]
[1736884418318,0.182,3229.3,3228.8,3.09709]
[1736884418690,0.0404032,3229.2,3228.8,3.09709]
[1736884419108,0.182,3229.3,3228.8,3.09709]
[1736884419305,0.04043702,3229.1,3228.8,3.09709]
[1736884419520,0.182,3229.3,3228.6,0.68229913]
[1736884419521,0.04046233,3229.2,3228.6,0.68229913]
[1736884419818,0.182,3229.3,3228.9,3.09702]
[1736884420006,0.04021059,3229.1,3228.7,0.36032804]
[1736884420205,0.182,3229.3,3229.0,3.09693]
[1736884421222,0.182,3229.3,3228.8,3.09703]
[1736884421405,0.182,3229.3,3228.9,3.09702]
[1736884422927,0.182,3229.3,3228.7,3.09718]
[1736884423284,0.182,3229.3,3228.8,3.09705]
[1736884423793,0.182,3229.3,3228.9,3.09702]
[1736884426117,0.182,3229.3,3228.5,2.92098127]
[1736884426327,0.182,3229.3,3229.0,3.09691]
[1736884427926,0.04028744,3229.2,3229.0,3.09691]
[1736884428416,0.04026213,3229.1,3229.0,3.09691]
[1736884428622,0.182,3229.3,3229.0,3.09691]
[1736884428785,0.04033427,3229.1,3229.0,3.09691]
[1736884428985,0.182,3229.3,3228.8,3.09707]
[1736884429285,0.04035846,3229.1,3228.8,3.09707]
[1736884429485,0.04038377,3229.2,3228.9,3.097]
[1736884429722,0.182,3229.3,3228.9,3.097]
[1736884430085,0.04034999,3229.2,3228.9,3.097]
[1736884430285,0.55,3228.9,3228.4,3.23716147]
[1736884430500,0.55,3228.9,3228.3,3.23716147]
[1736884430501,1.1295,3228.5,3228.3,3.23716147]
[1736884430779,1.49492337,3228.4,3228.3,3.23716147]
[1736884431009,0.77224137,3228.4,3228.3,3.23716147]
[1736884431325,0.55,3228.3,3227.8,3.09807]
[1736884431629,0.04001035,3228.2,3227.8,3.09807]
[1736884431789,0.55,3228.3,3227.8,3.09807]
[1736884431985,0.03998502,3228.1,3227.8,3.09807]
[1736884432190,0.55,3228.3,3227.8,3.09807]
[1736884432439,0.0399597,3228.0,3227.8,3.09807]
[1736884432612,0.732,3228.4,3227.8,3.09807]
[1736884432934,0.79977802,3230.4,3228.3,3.09758]
[1736884432935,3.09668,3229.3,3228.3,3.09758]
[1736884433138,3.09668,3229.3,3227.8,0.391437]
[1736884433139,0.5795,3229.2,3228.4,3.0975]
[1736884433337,0.7615,3229.2,3228.5,3.09739]
[1736884433697,0.55,3229.1,3228.5,3.09739]
[1736884433941,0.55,3229.1,3228.3,3.09752]
[1736884434121,0.55,3229.1,3228.4,0.391382]
[1736884434311,0.55,3229.1,3228.3,3.09752]
[1736884435911,0.55,3228.7,3228.1,3.09775]
[1736884437413,0.5795,3228.8,3227.9,2.92098127]
[1736884437743,0.5795,3228.8,3228.5,3.09734]
[1736884439455,1.1295,3229.1,3228.5,3.09734]
[1736884439958,1.1295,3229.1,3228.3,3.91384]
[1736884440128,1.570316,3229.1,3228.3,3.91384]
[1736884440329,1.570316,3229.1,3228.4,3.09749]
[1736884440956,0.55,3228.9,3228.0,7.13220147]
[1736884441126,0.55,3228.9,3228.0,6.33500147]
[1736884441460,0.5795,3228.6,3228.0,6.33500147]
[1736884441658,0.5795,3228.6,3228.0,0.63350015]
[1736884441861,0.5795,3228.6,3228.2,3.09761]
[1736884442163,0.03958837,3228.5,3228.2,3.09761]
[1736884442519,0.03958837,3228.5,3228.1,0.7972]
[1736884442721,0.5795,3229.0,3228.4,3.0975]
[1736884443031,0.03964567,3228.9,3228.4,3.0975]
[1736884444317,0.03964567,3228.9,3228.1,0.7972]
[1736884444318,0.03964567,3228.9,3228.6,3.09731]
[1736884445061,0.03964567,3228.9,3228.2,3.23716147]
[1736884445223,0.03964567,3228.9,3228.4,3.09747]
[1736884447057,0.5795,3228.7,3228.1,3.23716147]
[1736884447285,0.55,3228.4,3228.1,3.23716147]
[1736884447455,0.55,3228.4,3227.9,3.23716147]
[1736884447648,0.03881977,3228.3,3227.9,3.23716147]
[1736884448044,0.03881977,3228.3,3227.7,3.23716147]
[1736884448245,0.55,3228.4,3227.6,3.23716147]
[1736884448499,0.55,3228.4,3227.6,3.71010454]
[1736884448801,0.55,3228.4,3227.7,3.09817]
[1736884449146,0.03845918,3228.3,3227.7,3.09817]
[1736884450453,0.03845918,3228.3,3227.8,3.09804]
[1736884451063,0.55,3228.2,3227.6,3.09823]
[1736884451263,0.5795,3228.1,3227.5,3.30391657]
[1736884451601,0.5795,3227.9,3227.5,3.30391657]
[1736884451747,4.1295,3227.8,3227.5,0.0667551]
[1736884451948,0.55,3227.6,3227.5,0.0667551]
[1736884452176,0.58792335,3227.6,3227.5,0.0667551]
[1736884453363,1.16742335,3227.6,3227.5,0.0667551]
[1736884455366,7.26569335,3227.6,3227.5,0.0667551]
[1736884456474,4.16742335,3227.6,3227.5,0.0667551]
[1736884457783,3.76992335,3227.6,3227.5,0.0667551]
[1736884458099,0.76992335,3227.6,3227.5,0.0667551]
[1736884458264,0.58792335,3227.6,3227.5,0.0667551]
[1736884458878,0.03792335,3227.6,3227.5,0.0667551]
[1736884459077,0.5795,3228.3,3227.5,0.38328561]
[1736884459304,0.03721243,3227.6,3227.5,0.0667551]
[1736884459466,0.182,3228.2,3227.5,0.0667551]
[1736884459673,0.03697528,3227.6,3227.5,0.0667551]
[1736884459868,0.182,3228.2,3227.5,0.0667551]
[1736884459869,0.182,3228.2,3227.5,3.1650351]
[1736884460208,0.182,3228.2,3227.5,2.98773637]
[1736884460411,0.03738968,3228.1,3227.6,3.47970364]
[1736884461119,0.03738968,3228.1,3227.6,0.38145364]
[1736884461279,0.03738968,3228.1,3227.8,3.09806]
[1736884461479,0.7615,3228.3,3227.8,3.09806]
[1736884461680,0.03714176,3228.0,3227.8,3.09806]
[1736884461880,0.7615,3228.3,3227.8,3.09806]
[1736884462203,0.7615,3228.3,3227.5,0.0667551]
[1736884462408,0.55,3228.2,3227.6,0.39919751]
[1736884462736,0.58719242,3228.2,3227.6,0.39919751]
[1736884462891,0.58719242,3228.2,3227.5,3.1650951]
[1736884462892,3.58719242,3228.2,3227.5,0.0667551]
[1736884463092,3.55,3227.9,3227.5,0.0667551]
[1736884463288,0.55,3227.9,3227.5,0.0667551]
[1736884463487,0.03729743,3227.8,3227.5,3.1651251]
[1736884463730,0.7615,3228.3,3227.7,3.09818]
[1736884464528,0.7615,3228.3,3227.5,3.48158761]
[1736884464529,0.732,3228.2,3227.5,3.48158761]
[1736884464741,0.732,3228.2,3227.7,3.09817]
[1736884464893,0.732,3228.2,3227.5,0.38326761]
[1736884464894,0.182,3228.3,3227.8,3.09804]
[1736884465234,0.5795,3228.6,3227.6,0.8268]
[1736884465436,0.5795,3228.6,3227.7,0.41310489]
[1736884465641,0.182,3228.7,3228.1,3.09772]
[1736884465810,3.09642,3229.6,3228.4,0.8268]
[1736884466053,0.182,3229.5,3228.6,3.09724]
[1736884466198,3.27852,3229.5,3228.4,0.8268]
[1736884466538,0.5795,3229.3,3228.4,3.92427]
[1736884467319,0.55,3229.2,3228.4,3.92427]
[1736884467509,3.64682,3229.2,3228.2,3.09766]
[1736884467733,0.55,3229.0,3228.2,3.09766]
[1736884468050,0.55,3228.8,3228.1,0.8268]
[1736884468194,0.55,3228.6,3227.8,6.84581127]
[1736884468396,0.732,3228.6,3227.8,3.92483]
[1736884469617,0.732,3228.6,3227.9,3.09796]
[1736884471897,0.732,3228.6,3227.5,0.8935551]
[1736884472098,0.55,3228.0,3227.5,0.0667551]
[1736884472303,3.09781,3228.1,3227.5,0.0667551]
[1736884472304,3.55,3227.6,3227.5,0.0667551]
[1736884472817,3.58649927,3227.6,3227.5,0.0667551]
[1736884473014,4.26426927,3227.6,3227.5,0.0667551]
[1736884476917,1.16599927,3227.6,3227.5,0.0667551]
[1736884477437,1.34799927,3227.6,3227.5,0.0667551]
[1736884478445,0.03649927,3227.6,3227.5,0.0667551]
[1736884478747,0.182,3227.8,3227.5,0.0667551]
[1736884478945,0.03516805,3227.6,3227.5,0.0667551]
[1736884479246,0.732,3227.8,3227.5,0.0667551]
[1736884479450,0.03516805,3227.6,3227.5,0.0667551]
[1736884479602,0.732,3227.8,3227.5,0.0667551]
[1736884480104,0.03519339,3227.7,3227.5,0.0667551]
[1736884480355,0.732,3227.8,3227.5,0.0667551]
[1736884480553,0.03516805,3227.6,3227.5,0.0667551]
[1736884480849,0.182,3227.8,3227.5,0.0667551]
[1736884481550,0.0352811,3227.7,3227.5,0.0667551]
[1736884481947,0.182,3227.8,3227.5,0.0667551]
[1736884482152,0.03525577,3227.6,3227.5,0.0667551]
[1736884482350,0.182,3227.8,3227.5,0.0667551]
[1736884482714,0.0352811,3227.7,3227.5,0.0667551]
[1736884483249,0.03525577,3227.6,3227.5,0.0667551]
[1736884483422,0.182,3227.8,3227.5,0.45966361]
[1736884483746,0.5795,3228.2,3227.6,3.09827]
[1736884483747,0.0352811,3227.7,3227.6,3.09827]
[1736884484153,0.7615,3228.2,3227.6,3.09827]
[1736884484349,3.6478,3228.1,3227.5,0.0667551]
[1736884484526,0.55,3227.9,3227.5,0.0667551]
[1736884484949,0.55,3227.7,3227.5,0.0667551]
[1736884485360,0.03548794,3227.6,3227.5,0.0667551]
[1736884485737,0.55,3228.1,3227.5,0.0667551]
[1736884486277,0.03558928,3228.0,3227.5,0.0667551]
[1736884486431,0.7615,3228.2,3227.6,3.09822]
[1736884486635,0.03563008,3228.1,3227.6,3.09822]
[1736884486962,0.03563008,3228.1,3227.6,3.41471751]
[1736884487861,0.03563008,3228.1,3227.6,0.31649751]
[1736884488069,0.03563008,3228.1,3227.5,3.1650951]
[1736884488733,0.03563008,3228.1,3227.5,0.0667551]
[1736884488964,0.03563008,3228.1,3227.6,3.09825]
[1736884489674,0.55,3228.0,3227.5,0.0667551]
[1736884489883,0.03571354,3227.9,3227.5,0.0667551]
[1736884490040,0.55,3227.8,3227.5,0.0667551]
[1736884490238,0.03568824,3227.7,3227.5,0.0667551]
[1736884490478,0.55,3227.9,3227.5,0.0667551]
[1736884490682,0.03571357,3227.8,3227.5,0.0667551]
[1736884491041,0.5795,3227.7,3227.5,0.0667551]
[1736884491240,0.58580664,3227.6,3227.5,0.0667551]
[1736884491552,4.1104283,3227.6,3227.5,0.0667551]
[1736884492382,4.6899283,3227.6,3227.5,0.0667551]
[1736884492583,7.6899283,3227.6,3227.5,0.0667551]
[1736884494289,10.66763434,3227.6,3227.5,0.0667551]
[1736884494654,10.66763434,3227.6,3227.5,5.1e-06]
[1736884496050,3.67883,3226.5,3225.9,0.7867]
[1736884496255,0.55,3226.3,3225.9,0.7867]
[1736884496454,0.55,3226.1,3225.9,0.7867]
[1736884496695,0.03436239,3226.0,3225.6,3.88685]
[1736884496891,0.55,3226.3,3225.7,3.10009]
[1736884497194,0.55,3226.1,3225.7,3.10009]
[1736884497556,0.03435813,3226.0,3225.7,3.10009]
[1736884498301,0.03435813,3226.0,3225.6,1.49909313]
[1736884498600,0.182,3226.6,3226.1,3.09962]
[1736884498769,0.55,3226.5,3226.1,3.09962]
[1736884498955,0.58378931,3226.5,3226.1,3.09962]
[1736884499156,0.03378931,3226.5,3226.2,3.09952]
[1736884499564,0.03378931,3226.5,3226.0,0.7867]
[1736884499565,0.5795,3226.9,3226.0,3.88647]
[1736884499794,0.03376395,3226.4,3226.3,3.88622]
[1736884500007,0.182,3226.9,3226.3,4.87691113]
[1736884500214,0.182,3226.9,3226.4,3.09934]
[1736884500397,0.182,3226.9,3226.3,0.99069113]
[1736884500398,0.03390233,3226.8,3226.5,3.09932]
[1736884500583,0.03390233,3226.8,3226.3,0.99069113]
[1736884500788,0.03390233,3226.8,3226.2,3.09961]
[1736884501093,0.03390233,3226.8,3226.2,3.0996]
[1736884501295,0.55,3226.7,3226.0,3.88649]
[1736884501470,0.55,3226.5,3226.0,0.7867]
[1736884501867,0.5795,3226.6,3226.0,0.7867]
[1736884501868,0.03383047,3226.4,3226.0,0.7867]
[1736884502070,0.182,3226.9,3226.4,3.09942]
[1736884502302,0.03383362,3226.8,3226.4,3.09942]
[1736884502498,0.03383362,3226.8,3226.4,3.409362]
[1736884503221,0.03383362,3226.8,3226.5,3.09931]
[1736884503900,0.03383362,3226.8,3226.3,3.09947]
[1736884504101,0.03383362,3226.8,3226.4,3.09939]
[1736884504874,0.03383362,3226.8,3226.0,0.7867]
[1736884504875,0.55,3226.7,3226.0,0.7867]
[1736884505213,0.03386431,3226.6,3226.1,3.09969]
[1736884505912,0.03386431,3226.6,3226.2,3.09954]
[1736884506215,0.03386431,3226.6,3226.3,3.09945]
[1736884506591,0.182,3226.7,3226.4,3.09941]
[1736884506990,0.03390661,3226.6,3226.4,3.09941]
[1736884507501,0.182,3226.7,3226.4,3.09941]
[1736884507703,0.03390661,3226.6,3226.2,3.09958]
[1736884508016,0.03390661,3226.6,3226.2,3.8370499]
[1736884508216,0.03390661,3226.6,3226.0,3.88646]
[1736884508382,0.182,3226.7,3226.1,3.09971]
[1736884508578,0.03388126,3226.5,3226.2,3.09961]
[1736884508780,0.03421121,3226.6,3226.2,3.09961]
[1736884508978,0.0341605,3226.4,3226.2,3.488241]
[1736884509176,0.182,3226.7,3226.2,0.388631]
[1736884509507,0.182,3226.7,3226.4,3.0994]
[1736884510078,0.182,3226.7,3226.2,3.09957]
[1736884510273,0.182,3226.7,3226.3,3.09951]
[1736884511933,0.182,3226.7,3226.4,3.09934]
[1736884512228,0.182,3227.1,3226.8,3.09896]
[1736884512429,0.182,3227.5,3226.8,0.387856]
[1736884512590,0.182,3227.5,3227.0,3.09876]
[1736884513096,0.182,3227.5,3227.1,3.09872]
[1736884513592,0.182,3227.5,3226.9,3.09887]